[Event "Championnat d'Europe Rapide"]
[Date "2024.12.07"]
[White "Beerdsen, Thomas"]
[Black "Motylev, Alexander"]
[WhiteElo "2502"]
[BlackElo "2596"]
[Round "4.4"]
[Result "1/2-1/2"]
[TimeControl "900+10"]

1. e4 {[%emt 00:00:37] [%clk 00:14:43]} c5 {[%emt 00:00:03] [%clk 00:15:18]} 2.
Nf3 {[%emt 00:00:02] [%clk 00:14:51]} d6 {[%emt 00:00:02] [%clk 00:15:26]} 3. d4
{[%emt 00:00:01] [%clk 00:14:59]} cxd4 {[%emt 00:00:03] [%clk 00:15:34]} 4. Nxd4
{[%emt 00:00:01] [%clk 00:15:07]} Nc6 {[%emt 00:00:02] [%clk 00:15:41]} 5. Nc3
{[%emt 00:00:04] [%clk 00:15:14]} a6 {[%emt 00:00:02] [%clk 00:15:49]} 6. Bc4
{[%emt 00:00:18] [%clk 00:15:05]} e6 {[%emt 00:00:30] [%clk 00:15:30]} 7. Be3
{[%emt 00:00:02] [%clk 00:15:13]} Bd7 {[%emt 00:00:21] [%clk 00:15:18]} 8. Qe2
{[%emt 00:00:04] [%clk 00:15:20]} Rc8 {[%emt 00:00:13] [%clk 00:15:15]} 9. Nxc6
{[%emt 00:00:15] [%clk 00:15:15]} Rxc6 {[%emt 00:00:20] [%clk 00:15:04]} 10. O-O
{[%emt 00:00:57] [%clk 00:14:28]} Nf6 {[%emt 00:00:14] [%clk 00:15:01]} 11. f4
{[%emt 00:00:54] [%clk 00:13:43]} Qc7 {[%emt 00:01:05] [%clk 00:14:06]} 12. Bd3
{[%emt 00:00:02] [%clk 00:13:52]} Be7 {[%emt 00:00:30] [%clk 00:13:46]} 13. Bd4
{[%emt 00:00:25] [%clk 00:13:37]} Qa5 {[%emt 00:02:24] [%clk 00:11:32]} 14. e5
{[%emt 00:02:29] [%clk 00:11:18]} Qb4 {[%emt 00:00:56] [%clk 00:10:46]} 15. Be3
{[%emt 00:01:39] [%clk 00:09:49]} dxe5 {[%emt 00:00:24] [%clk 00:10:32]} 16.
fxe5 {[%emt 00:00:01] [%clk 00:09:57]} Ng4 {[%emt 00:00:03] [%clk 00:10:40]} 17.
Bd2 {[%emt 00:00:52] [%clk 00:09:15]} h5 {[%emt 00:00:57] [%clk 00:09:53]} 18.
Kh1 {[%emt 00:00:18] [%clk 00:09:07]} Qd4 {[%emt 00:01:52] [%clk 00:08:11]} 19.
Rae1 {[%emt 00:00:38] [%clk 00:08:39]} Bh4 {[%emt 00:02:12] [%clk 00:06:08]} 20.
g3 {[%emt 00:01:01] [%clk 00:07:49]} Be7 {[%emt 00:03:25] [%clk 00:02:53]} 21.
Rf4 {[%emt 00:00:26] [%clk 00:07:32]} Qb6 {[%emt 00:00:41] [%clk 00:02:22]} 22.
h3 {[%emt 00:00:24] [%clk 00:07:19]} g5 {[%emt 00:01:57] [%clk 00:00:35]} 23.
Rff1 {[%emt 00:00:46] [%clk 00:06:42]} Rxc3 {[%emt 00:00:11] [%clk 00:00:34]}
24. Bxc3 {[%emt 00:00:41] [%clk 00:06:10]} Bc6+ {[%emt 00:00:04] [%clk
00:00:40]} 25. Be4 {[%emt 00:00:01] [%clk 00:06:19]} Bxe4+ {[%emt 00:00:14]
[%clk 00:00:36]} 26. Qxe4 {[%emt 00:00:01] [%clk 00:06:27]} Nf2+ {[%emt
00:00:01] [%clk 00:00:45]} 27. Rxf2 {[%emt 00:00:02] [%clk 00:06:36]} Qxf2
{[%clk 00:00:54]} 28. Qxb7 {[%emt 00:02:27] [%clk 00:04:20]} Qxg3 {[%emt
00:00:24] [%clk 00:00:40]} 29. Qc8+ {[%emt 00:00:57] [%clk 00:03:32]} Bd8 {[%emt
00:00:03] [%clk 00:00:47]} 30. Qc6+ {[%emt 00:00:07] [%clk 00:03:36]} Kf8 {[%emt
00:00:02] [%clk 00:00:55]} 31. Qg2 {[%emt 00:00:41] [%clk 00:03:04]} Qxg2+
{[%emt 00:00:32] [%clk 00:00:33]} 32. Kxg2 {[%emt 00:00:01] [%clk 00:03:13]} Kg7
{[%clk 00:00:42]} 33. Bd4 {[%emt 00:00:21] [%clk 00:03:02]} f5 {[%emt 00:00:18]
[%clk 00:00:35]} 34. exf6+ {[%emt 00:00:51] [%clk 00:02:21]} Bxf6 {[%emt
00:00:01] [%clk 00:00:44]} 35. Re4 {[%emt 00:00:48] [%clk 00:01:43]} Rd8 {[%emt
00:00:25] [%clk 00:00:29]} 36. Be3 {[%emt 00:00:15] [%clk 00:01:38]} Bxb2 {[%emt
00:00:15] [%clk 00:00:24]} 37. Rxe6 {[%emt 00:00:18] [%clk 00:01:30]} Rc8 {[%emt
00:00:06] [%clk 00:00:28]} 38. Bxg5 {[%emt 00:00:11] [%clk 00:01:29]} Rxc2+
{[%emt 00:00:01] [%clk 00:00:37]} 39. Kf3 {[%emt 00:00:03] [%clk 00:01:36]} Rc3+
{[%emt 00:00:09] [%clk 00:00:38]} 40. Re3 {[%emt 00:00:18] [%clk 00:01:28]} Kg6
{[%emt 00:00:17] [%clk 00:00:32]} 41. Rxc3 {[%emt 00:00:20] [%clk 00:01:18]}
Bxc3 {[%emt 00:00:01] [%clk 00:00:40]} 42. Bd8 {[%emt 00:00:08] [%clk 00:01:18]}
Kf5 {[%emt 00:00:03] [%clk 00:00:49]} 43. Bc7 {[%emt 00:00:09] [%clk 00:01:19]}
Bd4 {[%emt 00:00:18] [%clk 00:00:41]}

[Site "Europe Echecs"]

[Event "Championnat d'Europe Rapide"]
[Date "2024.12.07"]
[White "Jobava, Baadur"]
[Black "Janik, Igor"]
[WhiteElo "2578"]
[BlackElo "2515"]
[Round "4.5"]
[Result "1-0"]
[TimeControl "900+10"]

1. c4 {[%emt 00:01:14] [%clk 00:14:06]} Nf6 {[%emt 00:00:14] [%clk 00:15:06]} 2.
b3 {[%emt 00:00:20] [%clk 00:13:56]} g6 {[%emt 00:00:20] [%clk 00:14:56]} 3. Bb2
{[%emt 00:00:03] [%clk 00:14:03]} Bg7 {[%emt 00:00:01] [%clk 00:15:05]} 4. g3
{[%emt 00:00:06] [%clk 00:14:07]} c6 {[%emt 00:00:07] [%clk 00:15:08]} 5. Bg2
{[%emt 00:00:03] [%clk 00:14:14]} d5 {[%emt 00:00:02] [%clk 00:15:16]} 6. Nf3
{[%emt 00:00:04] [%clk 00:14:20]} O-O {[%emt 00:00:03] [%clk 00:15:23]} 7. O-O
{[%emt 00:00:03] [%clk 00:14:27]} Bg4 {[%emt 00:00:02] [%clk 00:15:30]} 8. d3
{[%emt 00:00:35] [%clk 00:14:03]} Bxf3 {[%emt 00:00:12] [%clk 00:15:29]} 9. Bxf3
{[%emt 00:00:02] [%clk 00:14:10]} e6 {[%emt 00:00:02] [%clk 00:15:37]} 10. e3
{[%emt 00:00:24] [%clk 00:13:56]} Nbd7 {[%emt 00:00:17] [%clk 00:15:30]} 11. Bg2
{[%emt 00:00:18] [%clk 00:13:48]} Ne8 {[%emt 00:00:31] [%clk 00:15:09]} 12. d4
{[%emt 00:00:16] [%clk 00:13:42]} f5 {[%emt 00:00:27] [%clk 00:14:53]} 13. Nd2
{[%emt 00:00:21] [%clk 00:13:30]} Nd6 {[%emt 00:00:18] [%clk 00:14:43]} 14. Ba3
{[%emt 00:00:37] [%clk 00:13:05]} Nf6 {[%emt 00:00:05] [%clk 00:14:47]} 15. Nf3
{[%emt 00:00:11] [%clk 00:13:05]} Re8 {[%emt 00:00:03] [%clk 00:14:54]} 16. Ne5
{[%emt 00:00:11] [%clk 00:13:04]} Nf7 {[%emt 00:00:13] [%clk 00:14:50]} 17. Nd3
{[%emt 00:00:10] [%clk 00:13:05]} Ne4 {[%emt 00:00:18] [%clk 00:14:42]} 18. Bb2
{[%emt 00:00:15] [%clk 00:13:00]} Rc8 {[%emt 00:02:00] [%clk 00:12:53]} 19. Rc1
{[%emt 00:00:39] [%clk 00:12:30]} a6 {[%emt 00:00:49] [%clk 00:12:14]} 20. Qe2
{[%emt 00:00:14] [%clk 00:12:26]} h5 {[%emt 00:01:12] [%clk 00:11:11]} 21. Ne5
{[%emt 00:02:03] [%clk 00:10:33]} Nxe5 {[%emt 00:00:37] [%clk 00:10:45]} 22.
dxe5 {[%emt 00:00:01] [%clk 00:10:41]} Qa5 {[%emt 00:00:18] [%clk 00:10:38]} 23.
f3 {[%emt 00:00:46] [%clk 00:10:05]} Ng5 {[%emt 00:00:20] [%clk 00:10:28]} 24.
Bc3 {[%emt 00:00:26] [%clk 00:09:50]} Qb6 {[%emt 00:00:40] [%clk 00:09:58]} 25.
Bd4 {[%emt 00:01:12] [%clk 00:08:47]} Qa5 {[%emt 00:00:23] [%clk 00:09:46]} 26.
Rfd1 {[%emt 00:00:53] [%clk 00:08:03]} Bf8 {[%emt 00:00:45] [%clk 00:09:11]} 27.
c5 {[%emt 00:00:25] [%clk 00:07:48]} Bg7 {[%emt 00:00:44] [%clk 00:08:37]} 28.
b4 {[%emt 00:00:25] [%clk 00:07:33]} Qc7 {[%emt 00:00:01] [%clk 00:08:46]} 29.
a4 {[%emt 00:00:12] [%clk 00:07:31]} Nf7 {[%emt 00:01:17] [%clk 00:07:39]} 30.
f4 {[%emt 00:00:02] [%clk 00:07:39]} h4 {[%emt 00:00:01] [%clk 00:07:48]} 31. g4
{[%emt 00:00:30] [%clk 00:07:20]} Nh6 {[%emt 00:00:47] [%clk 00:07:11]} 32. g5
{[%emt 00:00:42] [%clk 00:06:47]} Nf7 {[%emt 00:00:01] [%clk 00:07:19]} 33. Qe1
{[%emt 00:00:20] [%clk 00:06:37]} h3 {[%emt 00:00:03] [%clk 00:07:27]} 34. Bxh3
{[%emt 00:00:03] [%clk 00:06:45]} Bf8 {[%clk 00:07:36]} 35. Bf1 {[%emt 00:00:16]
[%clk 00:06:38]} Be7 {[%emt 00:00:01] [%clk 00:07:44]} 36. h4 {[%emt 00:00:10]
[%clk 00:06:39]} Kg7 {[%clk 00:07:53]} 37. b5 {[%emt 00:00:24] [%clk 00:06:24]}
axb5 {[%emt 00:00:08] [%clk 00:07:55]} 38. axb5 {[%emt 00:00:02] [%clk
00:06:33]} cxb5 {[%emt 00:00:07] [%clk 00:07:59]} 39. Bxb5 {[%emt 00:00:03]
[%clk 00:06:40]} Rh8 {[%clk 00:08:08]} 40. Be2 {[%emt 00:00:03] [%clk 00:06:47]}
Nd8 {[%emt 00:00:26] [%clk 00:07:53]} 41. Rd2 {[%emt 00:00:53] [%clk 00:06:03]}
Nc6 {[%clk 00:08:02]} 42. Rb2 {[%emt 00:00:08] [%clk 00:06:05]} Ra8 {[%clk
00:08:11]} 43. Rcb1 {[%emt 00:00:09] [%clk 00:06:07]} Ra7 {[%clk 00:08:20]} 44.
Kg2 {[%emt 00:00:09] [%clk 00:06:07]} Bd8 {[%emt 00:00:06] [%clk 00:08:24]} 45.
Kg3 {[%emt 00:00:28] [%clk 00:05:49]} Kf8 {[%emt 00:00:09] [%clk 00:08:24]} 46.
Bc3 {[%emt 00:00:28] [%clk 00:05:32]} Qe7 {[%emt 00:00:29] [%clk 00:08:05]} 47.
Rb5 {[%emt 00:00:08] [%clk 00:05:34]} Ra3 {[%emt 00:01:12] [%clk 00:07:03]} 48.
Qc1 {[%emt 00:00:28] [%clk 00:05:16]} Ra7 {[%emt 00:01:17] [%clk 00:05:56]} 49.
Ra1 {[%emt 00:00:09] [%clk 00:05:17]} Qh7 {[%emt 00:00:04] [%clk 00:06:02]} 50.
h5 {[%emt 00:00:03] [%clk 00:05:24]} gxh5 {[%emt 00:00:01] [%clk 00:06:11]} 51.
Rxa7 {[%emt 00:00:11] [%clk 00:05:23]} Nxa7 {[%emt 00:00:03] [%clk 00:06:18]}
52. Rb1 {[%emt 00:00:34] [%clk 00:04:59]} h4+ {[%clk 00:06:27]} 53. Kh3 {[%emt
00:00:02] [%clk 00:05:07]} Qg7 {[%emt 00:00:04] [%clk 00:06:34]} 54. Qa3 {[%emt
00:00:14] [%clk 00:05:02]} Nc6 {[%emt 00:00:03] [%clk 00:06:41]} 55. Qa8 {[%emt
00:00:05] [%clk 00:05:07]} Kf7 {[%emt 00:01:46] [%clk 00:05:05]} 56. Qxb7+
{[%emt 00:00:50] [%clk 00:04:26]} 1-0

[Site "Europe Echecs"]

[Event "Championnat d'Europe Rapide"]
[Date "2024.12.07"]
[White "Safarli, Eltaj"]
[Black "Muradli, Mahammad"]
[WhiteElo "2610"]
[BlackElo "2588"]
[Round "4.6"]
[Result "1-0"]
[TimeControl "900+10"]

1. e4 {[%emt 00:01:16] [%clk 00:14:04]} c5 {[%emt 00:00:15] [%clk 00:15:06]} 2.
Nc3 {[%emt 00:00:09] [%clk 00:14:05]} d6 {[%emt 00:01:16]} 3. Nf3 {[%emt
00:00:06] [%clk 00:14:03]} a6 {[%emt 00:00:15] [%clk 00:14:00]} 4. g3 {[%emt
00:00:11] [%clk 00:14:02]} Nc6 {[%emt 00:00:12] [%clk 00:13:59]} 5. d4 {[%emt
00:00:17] [%clk 00:13:54]} cxd4 {[%emt 00:00:12] [%clk 00:13:57]} 6. Nxd4 {[%emt
00:00:02] [%clk 00:14:01]} Bd7 {[%emt 00:00:15] [%clk 00:13:53]} 7. Bg2 {[%emt
00:00:08] [%clk 00:14:03]} Nf6 {[%emt 00:00:02] [%clk 00:14:00]} 8. O-O {[%emt
00:00:37] [%clk 00:13:35]} e6 {[%emt 00:00:03] [%clk 00:14:08]} 9. Nxc6 {[%emt
00:00:53] [%clk 00:12:53]} Bxc6 {[%emt 00:00:03] [%clk 00:14:16]} 10. a4 {[%emt
00:00:04] [%clk 00:12:58]} Be7 {[%emt 00:00:23] [%clk 00:14:03]} 11. Be3 {[%emt
00:00:07] [%clk 00:13:01]} O-O {[%emt 00:00:05] [%clk 00:14:08]} 12. a5 {[%emt
00:00:02] [%clk 00:13:08]} Nd7 {[%emt 00:00:33] [%clk 00:13:46]} 13. Na4 {[%emt
00:00:21] [%clk 00:12:57]} Rc8 {[%emt 00:03:31] [%clk 00:10:25]} 14. Re1 {[%emt
00:00:56] [%clk 00:12:10]} Bxa4 {[%emt 00:02:35] [%clk 00:08:01]} 15. Rxa4
{[%emt 00:00:02] [%clk 00:12:18]} Qc7 {[%emt 00:00:01] [%clk 00:08:10]} 16. c3
{[%emt 00:00:25] [%clk 00:12:03]} Ne5 {[%emt 00:00:09] [%clk 00:08:11]} 17. Bb6
{[%emt 00:00:58] [%clk 00:11:16]} Qd7 {[%emt 00:00:05] [%clk 00:08:16]} 18. Ra2
{[%emt 00:01:45] [%clk 00:09:40]} Bd8 {[%emt 00:00:36] [%clk 00:07:50]} 19. Bd4
{[%emt 00:01:04] [%clk 00:08:45]} Nc6 {[%emt 00:00:14] [%clk 00:07:46]} 20. Bc5
{[%emt 00:00:20] [%clk 00:08:36]} Be7 {[%emt 00:02:42] [%clk 00:05:14]} 21. f4
{[%emt 00:01:54] [%clk 00:06:52]} Qc7 {[%emt 00:01:49] [%clk 00:03:35]} 22. Bb6
{[%emt 00:00:03] [%clk 00:07:00]} Qb8 {[%emt 00:00:01] [%clk 00:03:43]} 23. b4
{[%emt 00:00:23] [%clk 00:06:46]} Bd8 {[%emt 00:01:41] [%clk 00:02:13]} 24. Bf2
{[%emt 00:00:43] [%clk 00:06:12]} Bc7 {[%emt 00:00:40] [%clk 00:01:44]} 25. Qd3
{[%emt 00:00:36] [%clk 00:05:46]} Rfd8 {[%emt 00:00:10] [%clk 00:01:44]} 26. Rd1
{[%emt 00:00:07] [%clk 00:05:49]} Ne7 {[%emt 00:00:08] [%clk 00:01:46]} 27. f5
{[%emt 00:00:40] [%clk 00:05:19]} e5 {[%emt 00:01:43] [%clk 00:00:14]} 28. f6
{[%emt 00:00:01] [%clk 00:05:27]} gxf6 {[%clk 00:00:23]} 29. Qf3 {[%emt
00:00:02] [%clk 00:05:34]} f5 {[%emt 00:00:20] [%clk 00:00:13]} 30. exf5 {[%emt
00:00:06] [%clk 00:05:39]} f6 {[%clk 00:00:22]} 31. Qh5 {[%emt 00:00:36] [%clk
00:05:13]} Rf8 {[%emt 00:00:56]} 32. Re2 {[%clk 00:04:45]} b6 {[%emt 00:00:12]
[%clk 00:00:12]} 33. Re4 {[%emt 00:00:05] [%clk 00:04:50]} Rf7 {[%emt 00:00:06]
[%clk 00:00:16]} 34. Rg4+ {[%emt 00:00:10] [%clk 00:04:50]} Rg7 {[%emt 00:00:01]
[%clk 00:00:25]} 35. Rxg7+ {[%emt 00:00:06] [%clk 00:04:54]} Kxg7 {[%emt
00:00:01] [%clk 00:00:34]} 36. Be3 {[%emt 00:00:03] [%clk 00:05:02]} Kh8 {[%emt
00:00:33] [%clk 00:00:11]} 37. Qf7 {[%emt 00:00:15] [%clk 00:04:56]} Ng8 {[%emt
00:00:04] [%clk 00:00:17]} 38. Bh6 {[%emt 00:00:04] [%clk 00:05:03]} 1-0

[Site "Europe Echecs"]

[Event "Championnat d'Europe Rapide"]
[Date "2024.12.07"]
[White "Subelj, Jan"]
[Black "Korobov, Anton"]
[WhiteElo "2526"]
[BlackElo "2629"]
[Round "4.7"]
[Result "1/2-1/2"]
[TimeControl "900+10"]

1. e4 {[%emt 00:00:03] [%clk 00:15:16]} c5 {[%emt 00:00:02] [%clk 00:15:19]} 2.
Nf3 {[%emt 00:00:03] [%clk 00:15:23]} d6 {[%emt 00:00:02] [%clk 00:15:27]} 3. h3
{[%emt 00:00:06] [%clk 00:15:27]} Nf6 {[%emt 00:00:11] [%clk 00:15:26]} 4. Nc3
{[%emt 00:00:14] [%clk 00:15:23]} Nc6 {[%emt 00:00:06] [%clk 00:15:31]} 5. Bb5
{[%emt 00:00:31] [%clk 00:15:01]} Bd7 {[%emt 00:00:18] [%clk 00:15:23]} 6. O-O
{[%emt 00:00:28] [%clk 00:14:44]} e6 {[%emt 00:00:02] [%clk 00:15:30]} 7. Re1
{[%emt 00:00:08] [%clk 00:14:46]} Be7 {[%emt 00:00:06] [%clk 00:15:34]} 8. Bxc6
{[%emt 00:01:58] [%clk 00:12:59]} Bxc6 {[%emt 00:00:02] [%clk 00:15:41]} 9. d4
{[%emt 00:00:03] [%clk 00:13:06]} O-O {[%emt 00:01:39] [%clk 00:14:12]} 10. d5
{[%emt 00:00:42] [%clk 00:12:34]} exd5 {[%emt 00:00:04] [%clk 00:14:18]} 11.
exd5 {[%emt 00:00:01] [%clk 00:12:43]} Bd7 {[%emt 00:00:01] [%clk 00:14:27]} 12.
a4 {[%emt 00:00:03] [%clk 00:12:51]} Re8 {[%emt 00:00:06] [%clk 00:14:29]} 13.
Bf4 {[%emt 00:00:09] [%clk 00:12:52]} Qb6 {[%emt 00:00:08] [%clk 00:14:32]} 14.
Qd3 {[%emt 00:01:11] [%clk 00:11:51]} c4 {[%emt 00:04:23] [%clk 00:10:20]} 15.
Qd2 {[%emt 00:01:28] [%clk 00:10:33]} h6 {[%emt 00:00:38] [%clk 00:09:53]} 16.
a5 {[%emt 00:02:28] [%clk 00:08:15]} Qb4 {[%emt 00:00:22] [%clk 00:09:40]} 17.
Ne4 {[%emt 00:01:46] [%clk 00:06:38]} Qxd2 {[%emt 00:01:42] [%clk 00:08:09]} 18.
Nfxd2 {[%emt 00:00:02] [%clk 00:06:46]} Nxd5 {[%emt 00:00:09] [%clk 00:08:10]}
19. Bxd6 {[%emt 00:00:14] [%clk 00:06:43]} c3 {[%emt 00:03:45] [%clk 00:04:35]}
20. bxc3 {[%emt 00:00:06] [%clk 00:06:46]} Bc6 {[%emt 00:00:14] [%clk 00:04:31]}
21. c4 {[%emt 00:00:29] [%clk 00:06:28]} Nb4 {[%emt 00:00:14] [%clk 00:04:26]}
22. Bxb4 {[%emt 00:03:22] [%clk 00:03:16]} Bxb4 {[%emt 00:00:03] [%clk
00:04:34]} 23. c3 {[%emt 00:00:01] [%clk 00:03:25]} Bf8 {[%emt 00:00:03] [%clk
00:04:41]} 24. Ng3 {[%emt 00:00:16] [%clk 00:03:19]} Rxe1+ {[%emt 00:01:07]
[%clk 00:03:43]} 25. Rxe1 {[%emt 00:00:02] [%clk 00:03:27]} Rd8 {[%emt 00:00:01]
[%clk 00:03:52]} 26. Nb3 {[%emt 00:00:22] [%clk 00:03:15]} Rd3 {[%emt 00:00:08]
[%clk 00:03:54]} 27. Nd4 {[%emt 00:00:41] [%clk 00:02:44]} Rxc3 {[%emt 00:00:43]
[%clk 00:03:21]} 28. Nxc6 {[%emt 00:00:02] [%clk 00:02:52]} bxc6 {[%emt
00:00:01] [%clk 00:03:29]} 29. Re8 {[%emt 00:00:03] [%clk 00:03:00]} Ra3 {[%emt
00:00:45] [%clk 00:02:55]} 30. Nf5 {[%emt 00:00:02] [%clk 00:03:07]} f6 {[%emt
00:00:02] [%clk 00:03:04]} 31. Nd4 {[%emt 00:00:01] [%clk 00:03:16]} Rxa5 {[%emt
00:00:31] [%clk 00:02:43]} 32. Nxc6 {[%emt 00:00:37] [%clk 00:02:48]} Ra1+
{[%emt 00:00:04] [%clk 00:02:49]} 33. Kh2 {[%emt 00:00:01] [%clk 00:02:57]} Kf7
{[%emt 00:00:01] [%clk 00:02:58]} 34. Rd8 {[%emt 00:00:14] [%clk 00:02:53]} Bc5
{[%emt 00:00:09] [%clk 00:02:58]} 35. Kg3 {[%emt 00:00:42] [%clk 00:02:21]} Ra2
{[%emt 00:00:35] [%clk 00:02:34]} 36. Rd7+ {[%emt 00:00:38] [%clk 00:01:53]} Ke6
{[%emt 00:00:23] [%clk 00:02:20]} 37. Rxg7 {[%emt 00:00:03] [%clk 00:02:01]} a5
{[%emt 00:00:17] [%clk 00:02:13]} 38. f3 {[%emt 00:00:59] [%clk 00:01:13]} a4
{[%emt 00:00:07] [%clk 00:02:15]} 39. Kf4 {[%emt 00:00:01] [%clk 00:01:22]} Bd6+
{[%emt 00:01:12] [%clk 00:01:13]} 40. Ke4 {[%emt 00:00:10] [%clk 00:01:21]} f5+
{[%emt 00:00:06] [%clk 00:01:17]} 41. Kd3 {[%emt 00:00:02] [%clk 00:01:29]} a3
{[%emt 00:00:09] [%clk 00:01:19]} 42. Nd4+ {[%emt 00:00:23] [%clk 00:01:15]} Kf6
{[%emt 00:00:11] [%clk 00:01:17]} 43. Ra7 {[%emt 00:00:11] [%clk 00:01:15]} Bb4
{[%emt 00:00:26] [%clk 00:01:01]} 44. Ra6+ {[%emt 00:00:29] [%clk 00:00:56]} Kg5
{[%emt 00:00:08] [%clk 00:01:03]} 45. Nc2 {[%emt 00:00:02] [%clk 00:01:05]} Be7
{[%emt 00:00:11] [%clk 00:01:02]} 46. g3 {[%emt 00:00:02] [%clk 00:01:12]} f4
{[%emt 00:00:12] [%clk 00:01:01]} 47. h4+ {[%emt 00:00:33] [%clk 00:00:48]} Kh5
{[%emt 00:00:03] [%clk 00:01:09]} 48. Ra5+ {[%emt 00:00:27] [%clk 00:00:31]} Kg6
{[%clk 00:01:18]} 49. h5+ {[%emt 00:00:01] [%clk 00:00:41]} Kf7 {[%emt 00:00:01]
[%clk 00:01:26]} 50. gxf4 {[%emt 00:00:07] [%clk 00:00:44]} Rb2 {[%emt 00:00:02]
[%clk 00:01:35]} 51. Ra7 {[%emt 00:00:40] [%clk 00:00:14]} Ke8 {[%emt 00:00:31]
[%clk 00:01:14]} 52. Ra8+ {[%emt 00:00:10] [%clk 00:00:14]} Kf7 {[%emt 00:00:04]
[%clk 00:01:20]} 53. Ra7 {[%emt 00:00:01] [%clk 00:00:22]} Ke8 {[%emt 00:00:04]
[%clk 00:01:26]} 54. Ra8+ {[%emt 00:00:15] [%clk 00:00:18]} Kf7 {[%emt 00:00:01]
[%clk 00:01:34]} 55. Ra7 {[%emt 00:00:09] [%clk 00:00:18]} 1/2-1/2

[Site "Europe Echecs"]